Cogmind - Beta 13 @@@ ROGUE MODE // 2024.07.06 @ 09:12:21 Player: OmnomBrains Result: Destroyed by as-29094 with Assembled Rifle Performance ------------- Evolutions (1) 500 Regions Visited (3) 600 Robots Destroyed (35) 175 Value Destroyed (661) 661 Prototype IDs (2) 40 Alien Tech Used (0) 0 Bonus (0) 0 TOTAL SCORE: 1976 Bonus ------- None Cogmind --------- Core Integrity 0/400 Matter 296/300 Energy 273/275 System Corruption 1% Temperature Cool (0) Movement Walking (190) Ox1 Location -9/Mines Parts ------- > --- POWER (1) -------- Deuterium Engine > --- PROPULSION (3) --- Carbon-fiber Leg > --- UTILITY (3) ------ Small Storage Unit Tractor Beam > --- WEAPON (2) ------- Assault Rifle Light Assault Rifle > --- INVENTORY (8) ---- Deuterium Engine Improved Heat Sink Beam Rifle Improved Datajack Peak State ------------ > --- POWER ------------ Deuterium Engine > --- PROPULSION ------- Aluminum Leg Aluminum Leg Aluminum Leg > --- UTILITY ---------- Heat Sink Small Storage Unit Insulated Plating > --- WEAPON ----------- Beam Rifle Heavy Assault Rifle > --- INVENTORY -------- Deuterium Engine Deuterium Engine Aluminum Leg Beam Rifle Assault Rifle Light Assault Rifle Grenade Launcher Improved Datajack [Rating: 16] Favorites ----------- Power Ion Engine Engine Ion Engine Propulsion Aluminum Leg Leg Aluminum Leg Utility Small Storage Unit Device Heat Sink Storage Small Storage Unit Protection Insulated Plating Weapon Assault Rifle Energy Gun Small Laser Ballistic Gun Assault Rifle Launcher Grenade Launcher Build | -11 -10 -9 -9 ------- Run | Yrd Mat Mat Min Slots Evolved 2 | . . 2 . Power . | . . . . Propulsion 1 | . . 1 . Utility 1 | . . 1 . Weapon . | . . . . Parts Attached 50 | 3 18 21 8 Power 7 | 1 . 5 1 Engine 7 | 1 . 5 1 Core . | . . . . Reactor . | . . . . Propulsion 14 | 1 6 5 2 Treads . | . . . . Leg 14 | 1 6 5 2 Wheel . | . . . . Hover . | . . . . Flight . | . . . . Utility 10 | . 2 7 1 Device 8 | . 1 6 1 Storage 1 | . 1 . . Processor . | . . . . Hackware . | . . . . Protection 1 | . . 1 . Artifact . | . . . . Weapon 19 | 1 10 4 4 Energy Gun 6 | . 3 2 1 Energy Cannon . | . . . . Ballistic Gun 9 | 1 4 2 2 Ballistic Cannon . | . . . . Launcher 4 | . 3 . 1 Special Weapon . | . . . . Impact Weapon . | . . . . Slashing Weapon . | . . . . Piercing Weapon . | . . . . Special Melee Weapon . | . . . . Unidentified Prototypes . | . . . . Parts Lost 17 | . 1 6 10 Power 2 | . . 1 1 Propulsion 7 | . 1 2 4 Utility 5 | . . 3 2 Weapon 3 | . . . 3 Highest Loss Streak 7 | . 1 5 7 To Critical Strikes 1 | . . . 1 Average Slot Usage (%) 88 | . 91 90 69 Engine 11 | . 14 9 10 Leg 28 | . 27 32 16 Device 10 | . 6 14 7 Storage 12 | . 13 11 11 Energy Gun 9 | . 7 12 8 Ballistic Gun 13 | . 19 9 12 Naked Turns . | . . . . Heaviest Build 24 | 6 16 24 24 Greatest Support 30 | 10 20 30 30 Greatest Overweight (x) 6 | 1 1 . 6 Average Overweight (x) . | . . . . Largest Inventory Capacity 8 | 5 8 8 8 Average Capacity 7 | 5 7 8 8 Most Carried 8 | 5 8 8 8 Average Carried 7 | 4 6 7 6 Final Capacity 8 | 5 8 8 8 Final Carried 8 | 5 8 8 4 Class Distribution -------------------- 60% | Mutant 39% | Scavenger-Mutant Dominant Class ---------------- Mutant | -10/Materials Scavenger-Mutant | -9/Materials Scavenger-Mutant | -9/Mines Resources | -11 -10 -9 -9 ----------- Run | Yrd Mat Mat Min Matter Collected 1093 | 212 199 453 229 Remotely 209 | . 97 37 75 Salvage Created 1065 | . 270 525 270 Parts 75 | . 32 32 11 Haulers Intercepted . | . . . . Recyclers Shooed 1 | . . 1 . Parts Field Recycled . | . . . . Retrieved Matter . | . . . . Parts Self-Destructed . | . . . . Prevented . | . . . . Kills | -11 -10 -9 -9 ------- Run | Yrd Mat Mat Min Combat Hostiles Destroyed 30 | . 10 11 9 Guns 25 | . 6 11 8 AOE 5 | . 4 . 1 Classes Destroyed 8 | . 5 2 1 Worker 1 | . 1 . . Builder 3 | . 3 . . Recycler 4 | . . 2 2 Watcher 3 | . 2 1 . Swarmer 12 | . 6 3 3 Grunt 10 | . 4 6 . Sentry 2 | . . 2 . Assembled 6 | . . . 6 Best Kill Streak 5 | . 5 3 5 Combat Bots Only 4 | . 4 3 3 Max Kills in Single Turn 3 | . 3 1 1 Gunslinging 1 | . 1 . . Exploded 3 | . 3 . 1 Melee . | . . . . Uniques/NPCs Destroyed . | . . . . Combat | -11 -10 -9 -9 -------- Run | Yrd Mat Mat Min Hostile Shots Fired 268 | . 64 129 75 Missed 68 | . 15 36 17 Damage Taken 2545 | . 511 1017 1017 Core 534 | . 134 178 222 Absorbed by Shields 83 | . . 83 . Regen/Repaired (Parts) 17 | . . 17 . Core Remaining (%) 73 | 100 46 . . Volleys Fired 138 | . 38 62 38 Largest 2 | . 2 2 2 Hottest 80 | . 60 80 79 Shots Fired 265 | . 69 123 73 Gun 255 | . 63 123 69 Cannon . | . . . . Launcher 10 | . 6 . 4 Special . | . . . . Kinetic 147 | . 47 54 46 Thermal 108 | . 16 69 23 Explosive 10 | . 6 . 4 Electromagnetic . | . . . . Robot Hit Streak 12 | . 8 12 8 Robot Miss Streak 8 | . 5 8 3 Penetration Max . | . . . . Secondary Targets 3 | . 1 2 . Max Gunslinging Chain 1 | . 1 1 . Shots Hit Robots 145 | . 37 67 41 Core Hits 70 | . 24 21 25 Critical Kills . | . . . . Critical Parts Destroyed . | . . . . Critical Strikes 2 | . . . 2 Burn 2 | . . . 2 Melee Attacks . | . . . . Impact . | . . . . Slashing . | . . . . Piercing . | . . . . Sneak Attacks . | . . . . Combat Hostiles . | . . . . Follow-up Attacks . | . . . . Damage Inflicted 2250 | . 712 850 688 Guns 1841 | . 404 850 587 Cannons . | . . . . Explosions 398 | . 299 . 99 Melee . | . . . . Ramming 11 | . 9 . 2 Kinetic 1178 | . 307 487 384 Thermal 663 | . 97 363 203 Explosive 398 | . 299 . 99 Electromagnetic . | . . . . Impact . | . . . . Slashing . | . . . . Piercing . | . . . . Highest Corruption 1 | . . 1 1 Average Corruption 1 | . . 1 1 Corruption Purged . | . . . . Corruption Blocked . | . . . . Effects 6 | . . 3 3 Message Errors 1 | . . . 1 Matter Fused 1 | . . . 1 Heat Flow Errors 2 | . . 2 . Alerts 1 | . . . 1 Weapon Failures 1 | . . 1 . Overload Shots . | . . . . Overflow Damage 43 | . 43 . . Projectiles . | . . . . Explosions 43 | . 43 . . Melee . | . . . . Knockbacks . | . . . . Impact . | . . . . Kinetic . | . . . . Secondary . | . . . . Self-Inflicted Damage 23 | . 6 . 17 Shots 3 | . 1 . 2 Rammed . | . . . . Targets Rammed 4 | . 3 . 1 Kicked 4 | . 3 . 1 Crushed . | . . . . Highest Temperature 191 | . 60 191 124 Average Temperature 40 | . 22 61 42 Received Heat Transfer 789 | . 153 416 220 Siege Activations . | . . . . Robots Corrupted . | . . . . Combat Hostiles . | . . . . Parts Fried . | . . . . Impact Corruptions . | . . . . Robots Melted . | . . . . Combat Hostiles . | . . . . Parts Melted 1 | . . 1 . Heat Transferred 1750 | . 225 859 666 Parts Sabotaged . | . . . . Parts Stolen . | . . . . Parts Stripped . | . . . . Power Chain Reactions . | . . . . Alert | -11 -10 -9 -9 ------- Run | Yrd Mat Mat Min Peak Influence 328 | . 328 225 68 Initial 62 | . . 62 61 Average 136 | . 184 129 37 Maximum Alert Level 1 | . 1 1 . Low Security (%) 79 | 100 53 96 100 Level 1 20 | . 46 3 . Level 2 . | . . . . Level 3 . | . . . . Level 4 . | . . . . Level 5 . | . . . . High Security . | . . . . Max Security . | . . . . Squads Dispatched 4 | . 2 2 . Investigation 3 | . 1 2 . Extermination . | . . . . Reinforcement 1 | . 1 . . Assault . | . . . . Garrison . | . . . . Intercept . | . . . . Searches Triggered . | . . . . Construction Impeded . | . . . . Haulers Reinforced . | . . . . Active Scanning Responses . | . . . . Cargo Convoy Interrupts . | . . . . Stealth | -11 -10 -9 -9 --------- Run | Yrd Mat Mat Min Distress Signals 4 | . 1 3 . Communications Jammed . | . . . . Distress Signals . | . . . . Times Spotted 50 | . 15 22 13 Peak Tracking Total 6 | . 6 5 3 Tactical Retreats 1 | . . . 1 Traps | -11 -10 -9 -9 ------- Run | Yrd Mat Mat Min Traps Triggered . | . . . . Indirectly . | . . . . Trap Hack Attempts . | . . . . Triggered . | . . . . Disarmed . | . . . . Reprogrammed . | . . . . Reused . | . . . . Traps Extracted . | . . . . Installed . | . . . . Triggered . | . . . . Machines | -11 -10 -9 -9 ---------- Run | Yrd Mat Mat Min Machines Disabled 1 | . 1 . . Max in Single Turn 1 | . 1 . . Machines Repaired . | . . . . Machines Dismantled . | . . . . Machines Sabotaged . | . . . . Overloaded Fab Kills . | . . . . Hacking | -11 -10 -9 -9 --------- Run | Yrd Mat Mat Min Machines Accessed 8 | . 5 3 . Terminals 6 | . 4 2 . Fabricators . | . . . . Repair Stations 1 | . . 1 . Recycling Units 1 | . 1 . . Scanalyzers . | . . . . Garrison Access . | . . . . Total Hacks 21 | . 11 10 . Successful 6 | . 2 4 . Failed 15 | . 9 6 . Catastrophic 3 | . 1 2 . Database Lockouts . | . . . . Manual 3 | . . 3 . Terminals 16 | . 9 7 . Fabricators . | . . . . Repair Stations 3 | . . 3 . Recycling Units 2 | . 2 . . Scanalyzers . | . . . . Garrison Access . | . . . . Terminal Hacks 2 | . . 2 . Prototype ID Bank 1 | . . 1 . Zone Layout 1 | . . 1 . Fabricator Hacks . | . . . . Repair Station Hacks 2 | . . 2 . Scan Component 1 | . . 1 . Repair 1 | . . 1 . Recycling Unit Hacks 2 | . 2 . . Report Inventory 2 | . 2 . . Scanalyzer . | . . . . Garrison Access Hacks . | . . . . Unauthorized Hacks . | . . . . Terminals . | . . . . Fabricators . | . . . . Repair Stations . | . . . . Recycling Units . | . . . . Scanalyzers . | . . . . Garrison Access . | . . . . Data Cores Recovered . | . . . . Used . | . . . . Hacking Detections 7 | . 5 2 . Full Trace Events 4 | . 2 2 . Feedback Events 1 | . . 1 . Corruption 1 | . . 1 . Feedback Blocked . | . . . . Robot Schematics Acquired . | . . . . Robots Built . | . . . . Authchips . | . . . . Time . | . . . . Total Robot Build Rating . | . . . . Part Schematics Acquired . | . . . . Parts Built . | . . . . Authchips . | . . . . Time . | . . . . Total Part Build Rating . | . . . . Parts Repaired 1 | . . 1 . Time 26 | . . 26 . Parts Recycled . | . . . . Recycled Matter . | . . . . Retrieved Matter . | . . . . Retrieved Components . | . . . . Parts Scanalyzed . | . . . . Part Schematics Acquired . | . . . . Parts Damaged . | . . . . Bothacking | -11 -10 -9 -9 ------------ Run | Yrd Mat Mat Min Used RIF Installer . | . . . . Robots Hacked . | . . . . Non-combat . | . . . . Combat . | . . . . Robot Hacks Applied . | . . . . Relay Couplers Released . | . . . . Fabnet Peak Effective % . | . . . . Robots Rewired . | . . . . Allies Hacked . | . . . . Hacks Repelled . | . . . . Allies | -11 -10 -9 -9 -------- Run | Yrd Mat Mat Min Total Allies . | . . . . Largest Group . | . . . . Highest-Rated Group . | . . . . Highest-Rated Ally . | . . . . Total Orders . | . . . . Ally Attacks . | . . . . Total Damage . | . . . . Kills . | . . . . Allies Corrupted . | . . . . Allies Melted . | . . . . Intel | -11 -10 -9 -9 ------- Run | Yrd Mat Mat Min Robot Analysis Total . | . . . . Derelict Logs Recovered . | . . . . Drone Launches . | . . . . Drone Recoveries . | . . . . Exploration | -11 -10 -9 -9 ------------- Run | Yrd Mat Mat Min Turns Passed 1657 | 48 667 732 210 Spaces Moved 943 | 42 434 411 56 Core 24 | 19 . . 5 Treads . | . . . . Legs 919 | 23 434 411 51 Wheels . | . . . . Hover . | . . . . Flight . | . . . . Fastest Speed 50 | 50 120 120 120 Average Speed 121 | 93 120 120 156 Slowest Speed 350 | 120 190 120 350 Overloaded Moves . | . . . . Propulsion Burnouts . | . . . . Robots Hopped . | . . . . Cave-ins Triggered . | . . . . Exploration Rate (%) 28 | 3 71 24 17 Regions Visited 3 Branch Regions 1 Pre-discovered Areas . | . . . . Known Exits Taken . | . . . . Unknown Exits Taken 3 | 1 1 1 . Scrap Searched . | . . . . Spaces Dug . | . . . . Terrain Destroyed 63 | . 37 . 26 Melee . | . . . . Projectile . | . . . . AOE 63 | . 37 . 26 Terrain Rammed . | . . . . Walls Destroyed . | . . . . Machines Disabled . | . . . . Actions | -11 -10 -9 -9 --------- Run | Yrd Mat Mat Min Total 1196 | 49 510 529 108 Wait 15 | . 4 9 2 Move 940 | 41 433 410 56 Hop . | . . . . Pick Up 30 | 5 10 12 3 Fast Attach 10 | 3 1 6 . Attach 16 | . 4 5 7 Detach . | . . . . Swap 24 | . 13 10 1 Drop 19 | . 4 15 . Fire 138 | . 38 62 38 Melee . | . . . . Ram . | . . . . Kick 4 | . 3 . 1 Crush . | . . . . Escape Stasis . | . . . . Rewire . | . . . . Trap . | . . . . Miscellaneous . | . . . . Route ------- -11/Scrapyard -10/Materials (discovered 3 exits: *Mat x3) -9/Materials -9/Mines History --------- Turn | Location | Event 7 | -11/Scrapyard | Discovered new exit (range 14) 49 | -11/Scrapyard | Entered Materials 173 | -10/Materials | Discovered new exit (range 16) 326 | -10/Materials | Build established: Mutant 552 | -10/Materials | Discovered new exit (range 8) 615 | -10/Materials | Core integrity fell below 50% 692 | -10/Materials | Discovered new exit (range 10) 716 | -10/Materials | Entered another Materials area 716 | -9/Materials | Evolved 2 slots: Propulsion x1, Utility x1 837 | -9/Materials | Repaired Tractor Beam? 1120 | -9/Materials | Lost 5 parts (1p2n2u) 1220 | -9/Materials | Build established: Scavenger-Mutant 1399 | -9/Materials | Discovered new exit (range 8) 1448 | -9/Materials | Entered Mines 1449 | -9/Mines | Assembled infested the area 1487 | -9/Mines | Core integrity fell below 50% 1536 | -9/Mines | Core integrity fell below 20% 1572 | -9/Mines | Lost 7 parts (1p3n2u1w) 1658 | -9/Mines | Destroyed by as-29094 with Assembled Rifle Last Messages --------------- Acquired 2 matter. K-01 Serf collects debris. Acquired 7 matter. Acquired 3 matter. R-06 Scavenger collects Tractor Beam. Acquired 4 matter. S-10 Pest destroyed. K-01 Serf collects debris. R-06 Scavenger collects Sml. Storage Unit. Acquired 4 matter. R-06 Scavenger collects Terrain Scanner. K-01 Serf collects debris. K-01 Serf destroyed. Acquired 4 matter. Kicked T-07 Excavator. T-07 Excavator destroyed. Acquired 2 matter. Destroyed Asb. F-torch. Acquired 4 matter. as-66677 destroyed. Map ----- +----------------------------------------------------+ | ??????????????????????????????????????????? | | ??????????????????????????????????????????? | | ??????????????????????????????????????????? | | ??????????????????????????????????????????? | | ??????????????????????????????????????????? | | ??????????????????????????????????????????? | | ??????????????????????????????????????????? | | ??????????????????????????????????????????? | | ??????????????????????????????????????????? | | ??????????????????????????????????????????? | | ??????????????????????????????????????????? | | ??????????????????????????????????????????? | | ??????????????????????????????????????????? | | ?????????????????? ?????? ????????????????? | | ?????????????????? ##### ?????????????????? | | ??????????????????# # ????????????????? | | ??????????????????# ?????????????????? | | ??????????????????# ?????????????????? | | ??????????????????# #???????????????? | | ??????????????????#=* """ ##??????????????? | | ??????????????????#!%*""" ##?????????????? | | ??????????????????# a """ ????????????? | | ??????????????????# ?? ????????????? | | ??????????????????# * #??? ???##?????### | | ????????????#k#####%= #????? ### ####### | | ????????????# @ %!#????#### # ## | | ????????????####### ! ###### #### # | | ??????????????????#%===* ## # *# | | ??????????????????# %*% =%=% | | ??????????????????## =! =%!%* | | ??????????????????## ###### ### = | | ???????????????????######?# ##### | | ??????????????????????????## # # | | ???????????????????????????## ###?# | | ???????????????????????????? ######???# | | ??????????????????????????? ?????????# ## | | ??????????????????????????? ?????????# #? | | ?????????????????????????? ?????????# #? | | ??????????????????????# % ######### #? | | ????????????????????? % #? | | ????????????????????? ###########? | | ???????????????????????? ???????????????? | | ??????????????????????????#???????????????? | | | | | | | | | | | | | | | +----------------------------------------------------+ Best States ------------- Heat Dissipation 48 Energy Generation 14 Energy Capacity 275 Matter Stores 300 Matter Capacity 300 Sight Range 16 Terrain Scan Density 10 Armor Coverage 150 Resistance: EM 15 Evasion (%) 55 Item Schematics ----------------- None Robot Schematics ------------------ None Fabricated ------------ Nothing Alien Tech Used ----------------- None Achievements -------------- None Challenges ------------ None Game ------ Seed NeutronComponentDissipator Manual? 0 Play Time 00:22:08 Cumulative 10.1 hours Start 2024.07.06 @ 08:50:22 End 2024.07.06 @ 09:12:21 Sessions 1 Manual Loads 0 Difficulty Rogue Special Mode None Game No. 13 Rogue 13 Adventurer 0 Explorer 0 Win Type - Total 0 Types 0/0/0/0/0/0/0/0/0 Lore% 13 Gallery% 14 Achievement% 14 Wizard Run 0 Options --------- Layout 1 ASCII 0 Keyboard 0 Movement Mouse Keybinds 0 Fullscreen 1 Font 24/Terminus Map View 50x35 Zoom Use 0% Tactical HUD 0 Map Filters NONE Filters NONE Steam 1 RUN: ef5a208a-6199-48db-bd73-f6d73b502018